fUST/lending_fUST_20251214
["ID","MTS","AMOUNT","RATE_DAILY","PERIOD"]
[398449794,1765665047458,-1129.49,0.00021917,2]
[398449795,1765665047468,-500.0,0.00021917,2]
[398449796,1765665047478,-500.0,0.00021917,2]
[398449797,1765665047488,-500.0,0.00021917,2]
[398449798,1765665047497,-500.0,0.00021917,2]
[398449799,1765665047506,-500.0,0.00021917,2]
[398449800,1765665047515,-500.0,0.00021917,2]
[398449801,1765665047524,-809.86,0.00021917,2]
[398449802,1765665047533,-500.0,0.00021917,2]
[398449803,1765665047542,-500.0,0.00021917,2]
[398449804,1765665047551,-500.0,0.00021917,2]
[398449805,1765665047560,-826.14,0.00021917,2]
[398449806,1765665047569,-500.0,0.00021917,2]
[398449807,1765665047578,-1090.23,0.00021917,2]
[398449808,1765665047587,-500.0,0.00021917,2]
[398449809,1765665047597,-797.46,0.00021917,2]
[398449810,1765665047606,-760.77,0.00021917,2]
[398449811,1765665047615,-500.0,0.00021917,2]
[398449812,1765665047625,-2044.85,0.00021917,2]
[398449813,1765665047634,-516.81,0.00021917,2]
[398449814,1765665047643,-500.0,0.00021917,2]
[398449815,1765665047652,-500.0,0.00021917,2]
[398449816,1765665047661,-628.86,0.00021917,2]
[398449817,1765665047670,-880.15,0.00021917,2]
[398449818,1765665047679,-500.0,0.00021917,2]
[398449819,1765665047688,-500.0,0.00021917,2]
[398449820,1765665047698,-500.0,0.00021917,2]
[398449821,1765665047707,-1619.62,0.00021917,2]
[398449822,1765665047716,-1494.93,0.00021917,2]
[398449823,1765665047725,-500.0,0.00021917,2]
[398449824,1765665047734,-500.0,0.00021917,2]
[398449825,1765665047743,-500.0,0.00021917,2]
[398449826,1765665047753,-500.0,0.00021917,2]
[398449827,1765665047762,-1140.84,0.00021917,2]
[398449828,1765665047771,-500.0,0.00021917,2]
[398449829,1765665047780,-500.0,0.00021917,2]
[398449830,1765665047790,-500.0,0.00021917,2]
[398449831,1765665047799,-500.0,0.00021917,2]
[398449832,1765665047808,-500.0,0.00021917,2]
[398449833,1765665047818,-500.0,0.00021917,2]
[398449834,1765665047827,-662.0,0.00021917,2]
[398449835,1765665047837,-500.0,0.00021917,2]
[398449836,1765665047846,-500.0,0.00021917,2]
[398449837,1765665047856,-1586.75,0.00021917,2]
[398449838,1765665047865,-500.0,0.00021917,2]
[398449839,1765665047875,-500.0,0.00021917,2]
[398449840,1765665047884,-1332.4,0.00021917,2]
[398449841,1765665047894,-500.0,0.00021917,2]
[398449842,1765665047903,-232.46600779,0.00021917,2]
[398449843,1765665047912,-500.0,0.00021917,2]
[398449844,1765665047922,-500.0,0.00021917,2]
[398449845,1765665047931,-500.0,0.00021917,2]
[398449846,1765665047940,-554.50640673,0.00021917,2]
[398449847,1765665047950,-500.0,0.00021917,2]
[398449848,1765665047959,-500.0,0.00021917,2]
[398449849,1765665047968,-500.0,0.00021917,2]
[398449850,1765665047977,-500.0,0.00021917,2]
[398449851,1765665047987,-1063.41,0.00021917,2]
[398449852,1765665047996,-500.01,0.00021917,2]
[398449853,1765665048006,-1143.0,0.00021917,2]
[398449854,1765665048019,-544.85728388,0.00021917,2]
[398449855,1765665048029,-500.0,0.00021917,2]
[398449856,1765665048038,-500.0,0.00021917,2]
[398449857,1765665048048,-500.0,0.00021917,2]
[398449858,1765665048058,-500.0,0.00021917,2]
[398449859,1765665048067,-500.0,0.00021917,2]
[398449860,1765665048076,-500.0,0.00021917,2]
[398449861,1765665048085,-500.0,0.00021917,2]
[398449862,1765665048095,-500.0,0.00021917,2]
[398449863,1765665048105,-500.0,0.00021917,2]
[398449864,1765665048114,-1459.55,0.00021917,2]
[398449865,1765665048123,-500.0,0.00021917,2]
[398449866,1765665048133,-500.0,0.00021917,2]
[398449867,1765665048143,-500.0,0.00021917,2]
[398449868,1765665048152,-2064.47,0.00021917,2]
[398449869,1765665048162,-500.0,0.00021917,2]
[398449870,1765665048171,-500.0,0.00021917,2]
[398449871,1765665048180,-666.69,0.00021917,2]
[398449872,1765665048189,-557.34721729,0.00021917,2]
[398449873,1765665048199,-500.0,0.00021917,2]
[398449874,1765665048208,-500.0,0.00021917,2]
[398449875,1765665048217,-500.0,0.00021917,2]
[398449876,1765665048226,-500.0,0.00021917,2]
[398449877,1765665048235,-500.0,0.00021917,2]
[398449878,1765665048244,-500.0,0.00021917,2]
[398449879,1765665048253,-802.52,0.00021917,2]
[398449880,1765665048262,-500.0,0.00021917,2]
[398449881,1765665048271,-500.0,0.00021917,2]
[398449882,1765665048280,-500.0,0.00021917,2]
[398449883,1765665048289,-500.0,0.00021917,2]
[398449884,1765665048298,-1239.15,0.00021917,2]
[398449885,1765665048307,-1746.72,0.00021917,2]
[398449886,1765665048316,-500.0,0.00021917,2]
[398449887,1765665048325,-501.23353693,0.00021917,2]
[398449888,1765665048335,-500.0,0.00021917,2]
[398449889,1765665048343,-1189.33,0.00021917,2]
[398449890,1765665048353,-500.0,0.00021917,2]
[398449891,1765665048362,-1510.07,0.00021917,2]
[398449892,1765665048371,-773.58,0.00021917,2]
[398449893,1765665048380,-500.0,0.00021917,2]
[398449894,1765665048389,-2155.91,0.00021917,2]
[398449895,1765665048398,-500.0,0.00021917,2]
[398449896,1765665048407,-500.0,0.00021917,2]
[398449897,1765665048416,-809.04,0.00021917,2]
[398449898,1765665048425,-156.515192,0.00021917,2]
[398449899,1765665048434,-500.0,0.00021917,2]
[398449900,1765665048443,-738.18,0.00021917,2]
[398449901,1765665048453,-500.0,0.00021917,2]
[398449902,1765665048462,-500.0,0.00021917,2]
[398449903,1765665048637,-457.88142498,0.00021917,2]
[398449904,1765665048646,-500.0,0.00021917,2]
[398449905,1765665048655,-505.30765366,0.00021917,2]
[398449906,1765665048664,-536.9,0.00021917,2]
[398449907,1765665048672,-1279.56,0.00021917,2]
[398449908,1765665048681,-678.06,0.00021917,2]
[398449909,1765665048690,-500.0,0.00021917,2]
[398449910,1765665048698,-500.0,0.00021917,2]
[398449911,1765665048707,-500.0,0.00021917,2]
[398449912,1765665048716,-500.0,0.00021917,2]
[398449913,1765665048724,-2061.89,0.00021917,2]
[398449914,1765665048733,-501.03456323,0.00021917,2]
[398449915,1765665048742,-500.0,0.00021917,2]
[398449916,1765665048750,-557.19,0.00021917,2]
[398449917,1765665048759,-500.0,0.00021917,2]
[398449918,1765665048767,-500.0,0.00021917,2]
[398449919,1765665048776,-604.18,0.00021917,2]
[398449920,1765665048784,-454.00865794,0.00021917,2]
[398449921,1765665048793,-500.0,0.00021917,2]
[398449922,1765665048802,-500.0,0.00021917,2]
[398449923,1765665048810,-1283.6,0.00021917,2]
[398449924,1765665048819,-500.0,0.00021917,2]
[398449925,1765665048828,-1565.89,0.00021917,2]
[398449926,1765665048837,-500.0,0.00021917,2]
[398449927,1765665048846,-244.53971911,0.00021917,2]
[398449928,1765665048858,-865.6,0.00021917,2]
[398449929,1765665048867,-500.0,0.00021917,2]
[398449930,1765665048876,-853.54,0.00021917,2]
[398449931,1765665048886,-500.68011509,0.00021917,2]
[398449932,1765665048894,-500.0,0.00021917,2]
[398449933,1765665048903,-500.0,0.00021917,2]
[398449934,1765665048912,-1336.25,0.00021917,2]
[398449935,1765665048929,-500.0,0.00021917,2]
[398449936,1765665048937,-1872.65,0.00021917,2]
[398449937,1765665048946,-761.16,0.00021917,2]
[398449938,1765665048955,-500.0,0.00021917,2]
[398449939,1765665048963,-500.0,0.00021917,2]
[398449940,1765665048972,-500.0,0.00021917,2]
[398449941,1765665048980,-738.24,0.00021917,2]
[398449942,1765665048989,-1880.22,0.00021917,2]
[398449943,1765665048998,-500.45121523,0.00021917,2]
[398449944,1765665049007,-500.0,0.00021917,2]
[398449945,1765665049022,-500.0,0.00021917,2]
[398449946,1765665049031,-500.0,0.00021917,2]
[398449947,1765665049040,-500.0,0.00021917,2]
[398449948,1765665049049,-500.0,0.00021917,2]
[398449949,1765665049059,-500.0,0.00021917,2]
[398449950,1765665049068,-500.0,0.00021917,2]
[398449951,1765665049077,-1472.89,0.00021917,2]
[398449952,1765665049086,-500.0,0.00021917,2]
[398449953,1765665049096,-1253.23,0.00021917,2]
[398449954,1765665049105,-500.0,0.00021917,2]
[398449955,1765665049114,-500.0,0.00021917,2]
[398449956,1765665049124,-500.0,0.00021917,2]
[398449957,1765665049132,-501.50072842,0.00021917,2]
[398449958,1765665049142,-500.0,0.00021917,2]
[398449959,1765665049150,-1310.14,0.00021917,2]
[398449960,1765665049159,-500.0,0.00021917,2]
[398449961,1765665049167,-500.0,0.00021917,2]
[398449962,1765665049176,-500.0,0.00021917,2]
[398449963,1765665049185,-500.0,0.00021917,2]
[398449964,1765665049193,-1365.96,0.00021917,2]
[398449965,1765665049202,-1164.5,0.00021917,2]
[398449966,1765665049211,-222.19896501,0.00021917,2]
[398449967,1765665049219,-500.0,0.00021917,2]
[398449968,1765665049228,-500.0,0.00021917,2]
[398449969,1765665049237,-2208.72,0.00021917,2]
[398449970,1765665049246,-182.054036,0.00021917,2]
[398449971,1765665049254,-500.0,0.00021917,2]
[398449972,1765665049263,-1078.47,0.00021917,2]
[398449973,1765665049271,-182.054036,0.00021917,2]
[398449974,1765665049280,-500.0,0.00021917,2]
[398449975,1765665049289,-182.054036,0.00021917,2]
[398449976,1765665049298,-182.054036,0.00021917,2]
[398449977,1765665049307,-519.71172793,0.00021917,2]
[398449978,1765665049316,-500.0,0.00021917,2]
[398449979,1765665049325,-500.0,0.00021917,2]
[398449980,1765665049334,-598.37,0.00021917,2]
[398449981,1765665049343,-500.0,0.00021917,2]
[398449982,1765665049351,-1154.48,0.00021917,2]
[398449983,1765665049361,-500.0,0.00021917,2]
[398449984,1765665049370,-500.0,0.00021917,2]
[398449985,1765665049379,-857.63,0.00021917,2]
[398449986,1765665049388,-500.0,0.00021917,2]
[398449987,1765665049397,-500.0,0.00021917,2]
[398449988,1765665049406,-500.0,0.00021917,2]
[398449989,1765665049415,-500.0,0.00021917,2]
[398449990,1765665049424,-500.0,0.00021917,2]
[398449991,1765665049433,-1018.31,0.00021917,2]
[398449992,1765665049442,-500.0,0.00021917,2]
[398449993,1765665049450,-732.96,0.00021917,2]
[398449994,1765665049459,-500.0,0.00021917,2]
[398449995,1765665049468,-500.0,0.00021917,2]
[398449996,1765665049477,-500.0,0.00021917,2]
[398449997,1765665049485,-500.0,0.00021917,2]
[398449998,1765665049494,-1064.95,0.00021917,2]
[398449999,1765665049503,-500.0,0.00021917,2]
[398450000,1765665049512,-1430.64,0.00021917,2]
[398450001,1765665049520,-1000.96,0.00021917,2]
[398450002,1765665049529,-1000.0,0.00021917,2]
[398450003,1765665049538,-500.0,0.00021917,2]
[398450004,1765665049547,-500.0,0.00021917,2]
[398450005,1765665049556,-500.0,0.00021917,2]
[398450006,1765665049564,-1211.96,0.00021917,2]
[398450007,1765665049573,-500.0,0.00021917,2]
[398450008,1765665049581,-500.0,0.00021917,2]
[398450009,1765665049590,-754.64,0.00021917,2]
[398450010,1765665049598,-754.98,0.00021917,2]
[398450011,1765665049607,-500.0,0.00021917,2]
[398450012,1765665049616,-500.0,0.00021917,2]
[398450013,1765665049625,-500.0,0.00021917,2]
[398450014,1765665049634,-500.0,0.00021917,2]
[398450015,1765665049643,-918.71,0.00021917,2]
[398450016,1765665049652,-295.75359795,0.00021917,2]
[398450017,1765665049660,-1515.91,0.00021917,2]
[398450018,1765665049669,-500.0,0.00021917,2]
[398450019,1765665049678,-1015.33,0.00021917,2]
[398450020,1765665049687,-1037.83,0.00021917,2]
[398450021,1765665049695,-500.0,0.00021917,2]
[398450022,1765665049704,-500.0,0.00021917,2]
[398450023,1765665049713,-1171.75,0.00021917,2]
[398450024,1765665049722,-500.0,0.00021917,2]
[398450025,1765665049730,-1644.71,0.00021917,2]
[398450026,1765665049739,-500.0,0.00021917,2]
[398450027,1765665049748,-1555.43,0.00021917,2]
[398450028,1765665049756,-500.0,0.00021917,2]
[398450029,1765665049765,-500.0,0.00021917,2]
[398450030,1765665049774,-500.0,0.00021917,2]
[398450031,1765665049782,-483.32381083,0.00021917,2]
[398450032,1765665050174,-16.67618917,0.00021917,2]
[398450033,1765665050184,-500.0,0.00021917,2]
[398450034,1765665050192,-500.0,0.00021917,2]
[398450035,1765665050201,-500.0,0.00021917,2]
[398450036,1765665050210,-500.0,0.00021917,2]
[398450037,1765665050219,-646.11,0.00021917,2]
[398450038,1765665050228,-500.0,0.00021917,2]
[398450039,1765665050237,-500.0,0.00021917,2]
[398450040,1765665050246,-1825.59,0.00021917,2]
[398450041,1765665050254,-1106.99,0.00021917,2]
[398450042,1765665050263,-500.0,0.00021917,2]
[398450043,1765665050272,-500.0,0.00021917,2]
[398450044,1765665050280,-163.457904,0.00021917,2]
[398450045,1765665050289,-1167.44258308,0.00021917,2]
[398450046,1765665050313,-319.05239199,0.00016793,2]
[398450047,1765665050322,-264.68741692,0.00021917,2]
[398450048,1765665050331,-1352.79,0.00021917,2]
[398450049,1765665050340,-500.0,0.00021917,2]
[398450050,1765665050350,-500.0,0.00021917,2]
[398450051,1765665050359,-500.0,0.00021917,2]
[398450052,1765665050368,-500.0,0.00021917,2]
[398450053,1765665050377,-500.0,0.00021917,2]
[398450054,1765665050386,-169.852544,0.00021917,2]
[398450055,1765665050396,-159.3435583,0.00021917,2]
[398450056,1765665050404,-2131.25,0.00021917,2]
[398450057,1765665050414,-500.0,0.00021917,2]
[398450058,1765665050423,-321.51002629,0.00021917,2]
[398450059,1765665050431,-500.60724424,0.00021917,2]
[398450060,1765665050440,-500.0,0.00021917,2]
[398450061,1765665050450,-1932.27,0.00021917,2]
[398450062,1765665050459,-1149.99,0.00021917,2]
[398450063,1765665050467,-1599.22,0.00021917,2]
[398450064,1765665050477,-500.0,0.00021917,2]
[398450065,1765665050485,-500.0,0.00021917,2]
[398450066,1765665050494,-1182.17,0.00021917,2]
[398450067,1765665050503,-202.314833,0.00021917,2]
[398450068,1765665050512,-500.0,0.00021917,2]
[398450069,1765665050521,-202.314833,0.00021917,2]
[398450070,1765665050530,-500.0,0.00021917,2]
[398450071,1765665050539,-2329.262888,0.00021917,2]
[398450072,1765665050548,-548.58,0.00021917,2]
[398450073,1765665050557,-500.0,0.00021917,2]
[398450074,1765665050565,-202.314833,0.00021917,2]
[398450075,1765665050574,-1529.09,0.00021917,2]
[398450076,1765665050583,-500.0,0.00021917,2]
[398450077,1765665050592,-500.0,0.00021917,2]
[398450078,1765665050601,-202.314833,0.00021917,2]
[398450079,1765665050610,-500.0,0.00021917,2]
[398450080,1765665050619,-1635.36,0.00021917,2]
[398450081,1765665050628,-500.0,0.00021917,2]
[398450082,1765665050637,-500.0,0.00021917,2]
[398450083,1765665050646,-544.82,0.00021917,2]
[398450084,1765665050655,-508.55,0.00021917,2]
[398450085,1765665050664,-500.0,0.00021917,2]
[398450086,1765665050672,-1903.3,0.00021917,2]
[398450087,1765665050681,-500.0,0.00021917,2]
[398450088,1765665050690,-500.0,0.00021917,2]
[398450089,1765665050698,-500.0,0.00021917,2]
[398450090,1765665050707,-500.0,0.00021917,2]
[398450091,1765665050716,-550.94,0.00021917,2]
[398450092,1765665050725,-500.0,0.00021917,2]
[398450093,1765665050734,-500.0,0.00021917,2]
[398450094,1765665050743,-500.0,0.00021917,2]
[398450095,1765665050753,-500.0,0.00021917,2]
[398450096,1765665050762,-500.0,0.00021917,2]
[398450097,1765665050770,-500.0,0.00021917,2]
[398450098,1765665050779,-830.06,0.00021917,2]
[398450099,1765665050788,-844.14,0.00021917,2]
[398450100,1765665050797,-500.0,0.00021917,2]
[398450101,1765665050806,-500.0,0.00021917,2]
[398450102,1765665050815,-624.73,0.00021917,2]
[398450103,1765665050824,-500.0,0.00021917,2]
[398450104,1765665050832,-1136.31,0.00021917,2]
[398450105,1765665050841,-500.0,0.00021917,2]
[398450106,1765665050850,-787.16,0.00021917,2]
[398450107,1765665050859,-1153.95,0.00021917,2]
[398450108,1765665050868,-500.0,0.00021917,2]
[398450109,1765665050877,-500.0,0.00021917,2]
[398450110,1765665050885,-500.0,0.00021917,2]
[398450111,1765665050894,-500.0,0.00021917,2]
[398450112,1765665050903,-500.0,0.00021917,2]
[398450113,1765665050912,-1036.32,0.00021917,2]
[398450114,1765665050920,-500.0,0.00021917,2]
[398450115,1765665050929,-500.0,0.00021917,2]
[398450116,1765665050938,-1781.73,0.00021917,2]
[398450117,1765665050947,-509.13,0.00021917,2]
[398450118,1765665050956,-500.0,0.00021917,2]
[398450119,1765665050965,-4218.34,0.00021917,2]
[398450120,1765665050974,-870.94,0.00021917,2]
[398450121,1765665050983,-500.0,0.00021917,2]
[398450122,1765665050991,-500.0,0.00021917,2]
[398450123,1765665051000,-501.2370862,0.00021917,2]
[398450124,1765665051011,-1712.56,0.00021917,2]
[398450125,1765665051021,-500.0,0.00021917,2]
[398450126,1765665051029,-1031.16,0.00021917,2]
[398450127,1765665051038,-500.0,0.00021917,2]
[398450128,1765665051047,-500.0,0.00021917,2]
[398450129,1765665051057,-1495.5,0.00021917,2]
[398450130,1765665051065,-1883.6,0.00021917,2]
[398450131,1765665051074,-500.0,0.00021917,2]
[398450132,1765665051083,-2340.47,0.00021917,2]
[398450133,1765665051094,-2654.55,0.00021917,2]
[398450134,1765665051103,-729.74,0.00021917,2]
[398450135,1765665051112,-2057.7,0.00021917,2]
[398450136,1765665051120,-504.6,0.00021917,2]
[398450137,1765665051317,-500.0,0.00021917,2]
[398450138,1765665051327,-500.0,0.00021917,2]
[398450139,1765665051337,-500.0,0.00021917,2]
[398450140,1765665051346,-1022.52,0.00021917,2]
[398450141,1765665051356,-500.0,0.00021917,2]
[398450142,1765665051366,-500.48026356,0.00021917,2]
[398450143,1765665051375,-500.0,0.00021917,2]
[398450144,1765665051385,-859.48,0.00021917,2]
[398450145,1765665051394,-2065.71,0.00021917,2]
[398450146,1765665051403,-552.61,0.00021917,2]
[398450147,1765665051413,-559.2,0.00021917,2]
[398450148,1765665051423,-500.0,0.00021917,2]
[398450149,1765665051432,-922.2,0.00021917,2]
[398450150,1765665051443,-500.0,0.00021917,2]
[398450151,1765665051452,-500.0,0.00021917,2]
[398450152,1765665051461,-500.0,0.00021917,2]
[398450153,1765665051470,-774.35,0.00021917,2]
[398450154,1765665051480,-500.0,0.00021917,2]
[398450155,1765665051489,-2411.85,0.00021917,2]
[398450156,1765665051498,-500.0,0.00021917,2]
[398450157,1765665051507,-669.92,0.00021917,2]
[398450158,1765665051517,-500.0,0.00021917,2]
[398450159,1765665051527,-500.0,0.00021917,2]
[398450160,1765665051536,-500.0,0.00021917,2]
[398450161,1765665051546,-500.56874106,0.00021917,2]
[398450162,1765665051555,-500.0,0.00021917,2]
[398450163,1765665051565,-500.0,0.00021917,2]
[398450164,1765665051574,-568.57,0.00021917,2]
[398450165,1765665051583,-1656.51,0.00021917,2]
[398450166,1765665051592,-1439.79,0.00021917,2]
[398450167,1765665051602,-515.04,0.00021917,2]
[398450168,1765665051611,-3085.5,0.00021917,2]
[398450169,1765665051620,-500.0,0.00021917,2]
[398450170,1765665051629,-500.0,0.00021917,2]
[398450171,1765665051638,-1114.13,0.00021917,2]
[398450172,1765665051647,-1914.02,0.00021917,2]
[398450173,1765665051656,-2187.19,0.00021917,2]
[398450174,1765665051666,-1262.18,0.00021917,2]
[398450175,1765665051675,-500.0,0.00021917,2]
[398450176,1765665051684,-1703.14,0.00021917,2]
[398450177,1765665051693,-814.73,0.00021917,2]
[398450178,1765665051703,-500.0,0.00021917,2]
[398450179,1765665051713,-784.07,0.00021917,2]
[398450180,1765665051722,-500.0,0.00021917,2]
[398450181,1765665051732,-500.0,0.00021917,2]
[398450182,1765665051741,-160.97193593,0.00021917,2]
[398450183,1765665051750,-500.0,0.00021917,2]
[398450184,1765665051759,-500.0,0.00021917,2]
[398450185,1765665051768,-755.14,0.00021917,2]
[398450186,1765665051777,-1110.49,0.00021917,2]
[398450187,1765665051786,-500.0,0.00021917,2]
[398450188,1765665051796,-1181.28,0.00021917,2]
[398450189,1765665051805,-500.0,0.00021917,2]
[398450190,1765665051814,-3453.9,0.00021917,2]
[398450191,1765665051823,-1232.58,0.00021917,2]
[398450192,1765665051832,-500.0,0.00021917,2]
[398450193,1765665051841,-1587.45,0.00021917,2]
[398450194,1765665051850,-644.41,0.00021917,2]
[398450195,1765665051860,-500.0,0.00021917,2]
[398450196,1765665051868,-500.0,0.00021917,2]
[398450197,1765665051878,-500.0,0.00021917,2]
[398450198,1765665051887,-2090.66,0.00021917,2]
[398450199,1765665051895,-2753.96,0.00021917,2]
[398450200,1765665051904,-901.57,0.00021917,2]
[398450201,1765665051913,-2375.57,0.00021917,2]
[398450202,1765665051922,-1288.35,0.00021917,2]
[398450203,1765665051931,-500.0,0.00021917,2]
[398450204,1765665051940,-1008.96,0.00021917,2]
[398450205,1765665051949,-2621.57,0.00021917,2]
[398450206,1765665051958,-500.0,0.00021917,2]
[398450207,1765665051966,-500.0,0.00021917,2]
[398450208,1765665051975,-510.86582555,0.00021917,2]
[398450209,1765665051984,-500.0,0.00021917,2]
[398450210,1765665051993,-500.0,0.00021917,2]
[398450211,1765665052002,-1951.96,0.00021917,2]
[398450212,1765665052011,-1869.67,0.00021917,2]
[398450213,1765665052020,-500.0,0.00021917,2]
[398450214,1765665052029,-654.08,0.00021917,2]
[398450215,1765665052041,-1665.94,0.00021917,2]
[398450216,1765665052050,-13702.74,0.00021917,2]
[398450217,1765665052059,-2654.96,0.00021917,2]
[398450218,1765665052068,-500.0,0.00021917,2]
[398450219,1765665052079,-500.0,0.00021917,2]
[398450220,1765665052088,-500.0,0.00021917,2]
[398450221,1765665052097,-545.21,0.00021917,2]
[398450222,1765665052106,-500.0,0.00021917,2]
[398450223,1765665052116,-500.0,0.00021917,2]
[398450224,1765665052124,-2251.2,0.00021917,2]
[398450225,1765665052134,-680.99,0.00021917,2]
[398450226,1765665052143,-500.0,0.00021917,2]
[398450227,1765665052151,-523.79,0.00021917,2]
[398450228,1765665052161,-1878.15,0.00021917,2]
[398450229,1765665052170,-500.59968634,0.00021917,2]
[398450230,1765665052180,-500.0,0.00021917,2]
[398450231,1765665052189,-500.0,0.00021917,2]
[398450232,1765665052198,-1864.8,0.00021917,2]
[398450233,1765665052207,-500.0,0.00021917,2]
[398450234,1765665052216,-838.18,0.00021917,2]
[398450235,1765665052226,-500.0,0.00021917,2]
[398450236,1765665052236,-1596.73,0.00021917,2]
[398450237,1765665052247,-363.45321506,0.00021917,2]
[398450238,1765665052264,-136.54678494,0.00021917,2]
[398450239,1765665052273,-500.0,0.00021917,2]
[398450240,1765665052282,-500.0,0.00021917,2]
[398450241,1765665052292,-436.38240866,0.00021917,2]
[398450242,1765665052303,-63.61759134,0.00021917,2]
[398450243,1765665052312,-225.6986141,0.00021917,2]
[398450244,1765665052324,-274.3013859,0.00021917,2]
[398450245,1765665052334,-962.42,0.00021917,2]
[398450246,1765665052344,-2444.53,0.00021917,2]
[398450247,1765665052353,-500.0,0.00021917,2]
[398450248,1765665052363,-500.0,0.00021917,2]
[398450249,1765665052373,-1782.18,0.00021917,2]
[398450250,1765665052383,-500.0,0.00021917,2]
[398450251,1765665052392,-500.0,0.00021917,2]
[398450252,1765665052402,-734.17,0.00021917,2]
[398450253,1765665052412,-500.0,0.00021917,2]
[398450254,1765665052421,-500.0,0.00021917,2]
[398450255,1765665052431,-726.71,0.00021917,2]
[398450256,1765665052440,-758.96,0.00021917,2]
[398450257,1765665052450,-500.0,0.00021917,2]
[398450258,1765665052459,-500.0,0.00021917,2]
[398450259,1765665052468,-500.0,0.00021917,2]
[398450260,1765665052477,-500.99148057,0.00021917,2]
[398450261,1765665052486,-500.0,0.00021917,2]
[398450262,1765665052495,-500.0,0.00021917,2]
[398450263,1765665052505,-803.29,0.00021917,2]
[398450264,1765665052515,-500.0,0.00021917,2]
[398450265,1765665052524,-386.32708973,0.00021917,2]
[398450266,1765665052536,-1846.67291027,0.00021917,2]
[398450267,1765665052546,-353.30976685,0.00021917,2]
[398450268,1765665053204,-146.69023315,0.00021917,2]
[398450269,1765665053214,-394.40229483,0.00021917,2]
[398450270,1765665063521,312.41363097,0.00013273,2]
[398450271,1765665066027,500.0,0.00013273,2]
[398450272,1765665072067,500.0,0.00013273,2]
[398450273,1765665073354,500.0,0.00013273,2]
[398450274,1765665073652,500.0,0.00013273,2]
[398450275,1765665074584,500.0,0.00013273,2]
[398450276,1765665082008,500.0,0.00013273,2]
[398450277,1765665082315,500.0,0.00013273,2]
[398450278,1765665083602,500.0,0.00013273,2]
[398450279,1765665084297,500.0,0.00013273,2]
[398450280,1765665085940,500.0,0.00013273,2]
[398450281,1765665086288,500.0,0.00013273,2]
[398450282,1765665086333,500.0,0.00013273,2]
[398450283,1765665087517,596.11689786,0.00013273,2]
[398450284,1765665126637,500.0,0.00013273,2]
[398450285,1765665126888,500.0,0.00013273,2]
[398450286,1765665128356,500.0,0.00013273,2]
[398450287,1765665128516,500.0,0.00013273,2]
[398450288,1765665133459,500.0,0.00013273,2]
[398450289,1765665134396,500.0,0.00013273,2]
[398450290,1765665183057,466.90493378,0.00013273,2]
[398450291,1765665183123,500.0,0.00013273,2]
[398450292,1765665183398,641.87530084,0.00013273,2]
[398450293,1765665192667,500.0,0.00013273,2]